[Event "ONJK FGH 2"]
[Site "Enschede, Netherlands"]
[Date "2022.08.11"]
[Round "2.3"]
[White "Datta, Satadru"]
[Black "Zantingh, Syd"]
[Result "1-0"]
[TimeControl "25min + 10sec/move"]
[WhiteElo "786"]
[BlackElo "651"]

1. e4 {[%clk 00:25:19]} e5 {[%clk 00:25:18]} {[%emt 00:00:02]} 2. Nf3 {[%clk
00:25:26]} {[%emt 00:00:03]} Nc6 {[%clk 00:25:25]} {[%emt 00:00:03]} 3. Bc4
{[%clk 00:25:28]} {[%emt 00:00:08]} Bc5 {[%clk 00:25:34]} {[%emt 00:00:02]} 4.
Nc3 {[%clk 00:25:35]} {[%emt 00:00:03]} Nf6 {[%clk 00:25:36]} {[%emt 00:00:08]}
5. d3 {[%clk 00:25:41]} {[%emt 00:00:04]} h6 {[%clk 00:25:32]} {[%emt
00:00:14]} 6. Bd2 {[%clk 00:25:39]} {[%emt 00:00:11]} d6 {[%clk 00:25:30]}
{[%emt 00:00:13]} 7. h3 {[%clk 00:25:41]} {[%emt 00:00:07]} Be6 {[%clk
00:25:21]} {[%emt 00:00:19]} 8. Nd5 {[%clk 00:25:19]} {[%emt 00:00:33]} Nxd5
{[%clk 00:25:11]} {[%emt 00:00:18]} 9. exd5 {[%clk 00:25:23]} {[%emt 00:00:07]}
Bd7 {[%clk 00:25:10]} {[%emt 00:00:10]} 10. dxc6 {[%clk 00:25:31]} {[%emt
00:00:03]} Bxc6 {[%clk 00:25:19]} {[%emt 00:00:02]} 11. O-O {[%clk 00:25:28]}
{[%emt 00:00:13]} Bxf3 {[%clk 00:25:25]} {[%emt 00:00:03]} 12. Qxf3 {[%clk
00:25:31]} {[%emt 00:00:07]} O-O {[%clk 00:25:31]} {[%emt 00:00:04]} 13. Qg3
{[%clk 00:24:55]} {[%emt 00:00:46]} Kh8 {[%clk 00:25:26]} {[%emt 00:00:14]} 14.
Rfe1 {[%clk 00:24:24]} {[%emt 00:00:43]} Qf6 {[%clk 00:25:04]} {[%emt
00:00:32]} 15. Be3 {[%clk 00:23:59]} {[%emt 00:00:33]} Bb6 {[%clk 00:24:00]}
{[%emt 00:01:16]} 16. Bxb6 {[%clk 00:23:59]} {[%emt 00:00:09]} axb6 {[%clk
00:23:54]} {[%emt 00:00:16]} 17. a3 {[%clk 00:23:53]} {[%emt 00:00:16]} c6
{[%clk 00:23:35]} {[%emt 00:00:29]} 18. Re3 {[%clk 00:23:38]} {[%emt 00:00:25]}
d5 {[%clk 00:23:34]} {[%emt 00:00:11]} 19. Bb3 {[%clk 00:23:25]} {[%emt
00:00:23]} Rae8 {[%clk 00:23:14]} {[%emt 00:00:29]} 20. Qf3 {[%clk 00:23:26]}
{[%emt 00:00:09]} Qxf3 {[%clk 00:22:26]} {[%emt 00:01:12]} 21. Rxf3 {[%clk
00:23:40]} {[%emt 00:00:03]} e4 {[%clk 00:22:19]} {[%emt 00:00:18]} 22. dxe4
{[%clk 00:23:36]} {[%emt 00:00:12]} dxe4 {[%clk 00:21:38]} {[%emt 00:00:52]} 23.
Re3 {[%clk 00:23:33]} {[%emt 00:00:14]} b5 {[%clk 00:21:00]} {[%emt 00:00:48]}
24. Rae1 {[%clk 00:23:32]} {[%emt 00:00:11]} f5 {[%clk 00:20:29]} {[%emt
00:00:40]} 25. f3 {[%clk 00:23:31]} {[%emt 00:00:11]} c5 {[%clk 00:20:19]}
{[%emt 00:00:20]} 26. fxe4 {[%clk 00:23:18]} {[%emt 00:00:23]} fxe4 {[%clk
00:20:27]} {[%emt 00:00:01]} 27. Rxe4 {[%clk 00:23:05]} {[%emt 00:00:25]} Rxe4
{[%clk 00:20:33]} {[%emt 00:00:04]} 28. Rxe4 {[%clk 00:23:09]} {[%emt
00:00:06]} c4 {[%clk 00:19:51]} {[%emt 00:00:52]} 29. Ba2 {[%clk 00:23:15]}
{[%emt 00:00:04]} Rd8 {[%clk 00:19:31]} {[%emt 00:00:29]} 30. Re1 {[%clk
00:23:13]} {[%emt 00:00:12]} Rd2 {[%clk 00:19:09]} {[%emt 00:00:32]} 31. Bb1
{[%clk 00:22:55]} {[%emt 00:00:29]} Kh7 {[%clk 00:19:05]} {[%emt 00:00:13]} 32.
c3+ {[%clk 00:22:43]} {[%emt 00:00:21]} Kg8 {[%clk 00:19:05]} {[%emt 00:00:10]}
33. Kf1 {[%clk 00:21:59]} {[%emt 00:00:54]} Rxb2 {[%clk 00:18:56]} {[%emt
00:00:21]} 34. Rc1 {[%clk 00:21:21]} {[%emt 00:00:47]} Rb3 {[%clk 00:19:00]}
{[%emt 00:00:06]} 35. Ke2 {[%clk 00:20:56]} {[%emt 00:00:35]} Rxa3 {[%clk
00:19:07]} {[%emt 00:00:03]} 36. Kd2 {[%clk 00:20:49]} {[%emt 00:00:17]} Ra4
{[%clk 00:19:00]} {[%emt 00:00:17]} 37. Bc2 {[%clk 00:20:39]} {[%emt 00:00:20]}
Ra2 {[%clk 00:18:00]} {[%emt 00:01:10]} 38. Ke3 {[%clk 00:20:25]} {[%emt
00:00:24]} Ra3 {[%clk 00:17:00]} {[%emt 00:01:10]} 39. Be4 {[%clk 00:20:15]}
{[%emt 00:00:20]} b6 {[%clk 00:16:30]} {[%emt 00:00:41]} 40. Bc6 {[%clk
00:19:59]} {[%emt 00:00:25]} b4 {[%clk 00:16:00]} {[%emt 00:00:40]} 41. Kd4
{[%clk 00:19:40]} {[%emt 00:00:28]} bxc3 {[%emt 00:00:46]} 42. Rxc3 {[%clk
00:19:41]} {[%emt 00:00:04]} Ra2 {[%clk 00:15:00]} {[%emt 00:00:40]} 43. Kxc4
{[%clk 00:19:17]} {[%emt 00:00:34]} Ra4+ {[%clk 00:14:46]} {[%emt 00:00:23]} 44.
Bxa4 {[%clk 00:19:25]} {[%emt 00:00:03]} Kf7 {[%clk 00:14:10]} {[%emt
00:00:47]} 45. Kb5 {[%clk 00:19:23]} {[%emt 00:00:11]} Kf6 {[%clk 00:13:59]}
{[%emt 00:00:21]} 46. Kxb6 {[%clk 00:19:29]} {[%emt 00:00:04]} Ke5 {[%clk
00:13:14]} {[%emt 00:00:56]} 47. Rg3 {[%clk 00:19:26]} {[%emt 00:00:12]} g5
{[%clk 00:12:37]} {[%emt 00:00:47]} 48. Rf3 {[%clk 00:19:20]} {[%emt 00:00:16]}
h5 {[%clk 00:12:01]} {[%emt 00:00:46]} 49. Bc2 {[%clk 00:19:20]} {[%emt
00:00:10]} h4 {[%clk 00:11:30]} {[%emt 00:00:42]} 50. Rf5+ {[%clk 00:19:23]}
{[%emt 00:00:06]} Kd4 {[%clk 00:11:00]} {[%emt 00:00:41]} 51. Rxg5 {[%clk
00:19:27]} {[%emt 00:00:06]} Kc3 {[%clk 00:10:23]} {[%emt 00:00:46]} 52. Bf5
{[%clk 00:19:25]} {[%emt 00:00:12]} Kd4 {[%clk 00:09:59]} {[%emt 00:00:35]} 53.
Rh5 {[%clk 00:19:32]} {[%emt 00:00:02]} Ke5 {[%clk 00:09:40]} {[%emt 00:00:29]}
54. Bb1+ {[%clk 00:19:36]} {[%emt 00:00:06]} Kf4 {[%clk 00:09:39]} {[%emt
00:00:11]} 55. Rxh4+ {[%clk 00:19:43]} {[%emt 00:00:03]} Kg3 {[%clk 00:09:32]}
{[%emt 00:00:18]} 56. Rg4+ {[%clk 00:19:43]} {[%emt 00:00:09]} Kh2 {[%clk
00:09:23]} {[%emt 00:00:19]} 57. h4 {[%clk 00:19:49]} {[%emt 00:00:04]} Kg1
{[%clk 00:09:15]} {[%emt 00:00:18]} 58. h5 {[%clk 00:19:54]} {[%emt 00:00:05]}
Kh2 {[%clk 00:08:45]} {[%emt 00:00:40]} 59. h6 {[%clk 00:19:58]} {[%emt
00:00:06]} Kg1 {[%clk 00:08:47]} {[%emt 00:00:07]} 60. h7 {[%clk 00:20:03]}
{[%emt 00:00:05]} Kh2 {[%clk 00:08:40]} {[%emt 00:00:17]} 61. h8=Q+ {[%clk
00:20:08]} {[%emt 00:00:05]} Kg1 {[%clk 00:08:35]} {[%emt 00:00:15]} 62. Rh4
{[%clk 00:19:56]} {[%emt 00:00:22]} Kxg2 {[%clk 00:08:31]} {[%emt 00:00:14]} 63.
Qg8+ {[%clk 00:20:00]} {[%emt 00:00:06]} Kf3 {[%clk 00:08:38]} {[%emt
00:00:04]} 64. Qg4+ {[%clk 00:20:03]} {[%emt 00:00:07]} Kf2 {[%clk 00:08:45]}
{[%emt 00:00:02]} 65. Rh3 {[%clk 00:20:01]} {[%emt 00:00:12]} Kf1 {[%clk
00:08:47]} {[%emt 00:00:07]} 66. Rh2 {[%clk 00:20:05]} {[%emt 00:00:07]} Ke1
{[%emt 00:00:05]} 67. Qg1# {[%clk 00:20:01]} {[%emt 00:00:02]} 1-0

[Event "ONJK FGH 2"]
[Site "Enschede, Netherlands"]
[Date "2022.08.12"]
[Round "3.1"]
[White "Georgopoulos-Karbouniaris"]
[Black "Westerhof, Siem"]
[Result "1-0"]
[TimeControl "25min + 10sec/move"]
[WhiteElo "787"]
[BlackElo "739"]

1. e4 {[%clk 00:25:17]} {[%emt 00:00:02]} e5 {[%clk 00:25:17]} {[%emt
00:00:03]} 2. c3 {[%clk 00:25:25]} {[%emt 00:00:02]} Nc6 {[%emt 00:00:13]} 3.
d4 {[%clk 00:25:34]} exd4 {[%clk 00:25:15]} {[%emt 00:00:11]} 4. cxd4 {[%clk
00:25:42]} {[%emt 00:00:02]} d5 {[%clk 00:25:16]} {[%emt 00:00:08]} 5. e5
{[%clk 00:25:17]} {[%emt 00:00:35]} f6 {[%clk 00:25:15]} {[%emt 00:00:11]} 6.
Nf3 {[%clk 00:25:17]} {[%emt 00:00:10]} fxe5 {[%clk 00:25:16]} {[%emt
00:00:09]} 7. Nxe5 {[%clk 00:25:25]} {[%emt 00:00:02]} Nxe5 {[%clk 00:25:11]}
{[%emt 00:00:15]} 8. dxe5 {[%clk 00:25:34]} Bf5 {[%clk 00:25:01]} {[%emt
00:00:19]} 9. Be2 {[%clk 00:25:14]} {[%emt 00:00:31]} Bb4+ {[%clk 00:24:45]}
{[%emt 00:00:25]} 10. Bd2 {[%clk 00:25:21]} {[%emt 00:00:04]} Bxd2+ {[%clk
00:24:51]} {[%emt 00:00:05]} 11. Nxd2 {[%clk 00:25:29]} {[%emt 00:00:02]} Qe7
{[%clk 00:24:53]} {[%emt 00:00:07]} 12. O-O {[%clk 00:25:15]} {[%emt 00:00:24]}
Qxe5 {[%clk 00:24:58]} {[%emt 00:00:04]} 13. Re1 {[%clk 00:25:17]} {[%emt
00:00:09]} Qf6 {[%clk 00:25:06]} {[%emt 00:00:02]} 14. Ba6+ {[%clk 00:25:03]}
{[%emt 00:00:24]} Ne7 {[%clk 00:25:07]} {[%emt 00:00:08]} 15. Bxb7 {[%clk
00:25:09]} {[%emt 00:00:04]} Rb8 {[%clk 00:25:12]} {[%emt 00:00:05]} 16. Bxd5
{[%clk 00:24:59]} {[%emt 00:00:21]} Rxb2 {[%clk 00:25:15]} {[%emt 00:00:07]} 17.
Qa4+ {[%clk 00:24:41]} {[%emt 00:00:26]} Bd7 {[%clk 00:25:14]} {[%emt
00:00:13]} 18. Qd1 {[%clk 00:24:22]} {[%emt 00:00:29]} Kd8 {[%emt 00:00:55]} 19.
Nc4 {[%clk 00:23:21]} {[%emt 00:00:26]} Qxf2+ {[%clk 00:25:11]} {[%emt
00:00:12]} 20. Kh1 {[%clk 00:23:26]} {[%emt 00:00:06]} Rc2 {[%clk 00:24:58]}
{[%emt 00:00:22]} 21. Ne3 {[%clk 00:22:52]} {[%emt 00:00:44]} Nxd5 {[%clk
00:24:28]} {[%emt 00:00:41]} 22. Nxc2 {[%clk 00:22:51]} {[%emt 00:00:10]} Bc6
{[%clk 00:24:33]} {[%emt 00:00:05]} 23. Nb4 {[%clk 00:22:42]} {[%emt 00:00:17]}
Qc5 {[%clk 00:24:29]} {[%emt 00:00:16]} 24. Nxd5 {[%clk 00:22:29]} {[%emt
00:00:23]} Bxd5 {[%clk 00:24:35]} {[%emt 00:00:04]} 25. Rc1 {[%clk 00:22:26]}
{[%emt 00:00:14]} Qd6 {[%clk 00:24:34]} {[%emt 00:00:11]} 26. Qg4 {[%clk
00:21:22]} {[%emt 00:01:12]} Re8 {[%clk 00:23:56]} {[%emt 00:00:49]} 27. Qg5+
{[%clk 00:21:07]} {[%emt 00:00:24]} Kd7 {[%clk 00:23:36]} {[%emt 00:00:46]} 28.
Qxg7+ {[%clk 00:21:19]} {[%emt 00:00:03]} Kd8 {[%clk 00:23:33]} {[%emt
00:00:14]} 29. Rxe8+ {[%clk 00:21:02]} {[%emt 00:00:27]} Kxe8 {[%clk 00:23:34]}
{[%emt 00:00:10]} 30. Re1+ {[%clk 00:20:56]} {[%emt 00:00:16]} Kd8 {[%clk
00:23:42]} {[%emt 00:00:01]} 31. Qh8+ {[%clk 00:20:49]} {[%emt 00:00:17]} Kd7
{[%clk 00:23:49]} {[%emt 00:00:04]} 32. Qe8# {[%clk 00:20:55]} {[%emt
00:00:03]} 1-0

[Event "ONJK FGH 2"]
[Site "Enschede, Netherlands"]
[Date "2022.08.12"]
[Round "3.2"]
[White "Zantingh, Kyo"]
[Black "Datta, Satadru"]
[Result "1-0"]
[TimeControl "25min + 10sec/move"]
[WhiteElo "739"]
[BlackElo "786"]

1. e4 {[%clk 00:25:19]} e5 {[%clk 00:25:18]} {[%emt 00:00:02]} 2. Nf3 {[%clk
00:25:26]} {[%emt 00:00:04]} Nc6 {[%clk 00:25:25]} {[%emt 00:00:03]} 3. Bc4
{[%clk 00:25:33]} {[%emt 00:00:03]} Bc5 {[%clk 00:25:29]} {[%emt 00:00:05]} 4.
c3 {[%clk 00:25:41]} {[%emt 00:00:02]} Nf6 {[%clk 00:25:34]} {[%emt 00:00:05]}
5. d4 {[%clk 00:25:49]} {[%emt 00:00:02]} exd4 {[%clk 00:25:25]} {[%emt
00:00:18]} 6. cxd4 {[%clk 00:25:56]} {[%emt 00:00:02]} Bb6 {[%clk 00:25:14]}
{[%emt 00:00:22]} 7. d5 {[%clk 00:25:58]} {[%emt 00:00:07]} Nb4 {[%clk
00:24:53]} {[%emt 00:00:32]} 8. e5 {[%clk 00:25:55]} {[%emt 00:00:13]} Ng4
{[%clk 00:24:39]} {[%emt 00:00:23]} 9. O-O {[%clk 00:25:41]} {[%emt 00:00:24]}
O-O {[%clk 00:23:46]} {[%emt 00:01:04]} 10. Ng5 {[%clk 00:25:38]} {[%emt
00:00:13]} Nh6 {[%clk 00:23:02]} {[%emt 00:00:53]} 11. a3 {[%clk 00:25:45]}
{[%emt 00:00:04]} Na6 {[%clk 00:23:03]} {[%emt 00:00:09]} 12. Qc2 {[%clk
00:25:53]} {[%emt 00:00:02]} f5 {[%clk 00:21:55]} {[%emt 00:01:18]} 13. d6+
{[%clk 00:25:59]} {[%emt 00:00:05]} Kh8 {[%clk 00:21:51]} {[%emt 00:00:13]} 14.
Qb3 {[%clk 00:25:59]} {[%emt 00:00:11]} Nc5 {[%clk 00:20:32]} {[%emt 00:01:28]}
15. Qa2 {[%clk 00:25:53]} {[%emt 00:00:17]} f4 {[%clk 00:19:25]} {[%emt
00:01:17]} 16. e6 {[%clk 00:25:58]} {[%emt 00:00:04]} Qxg5 {[%clk 00:18:58]}
{[%emt 00:00:37]} 17. e7 {[%clk 00:25:54]} {[%emt 00:00:14]} Re8 {[%clk
00:18:44]} {[%emt 00:00:23]} 18. Bf7 {[%clk 00:26:02]} {[%emt 00:00:04]} Nxf7
{[%clk 00:17:53]} {[%emt 00:01:00]} 19. Qxf7 {[%clk 00:26:08]} {[%emt
00:00:05]} Qg6 {[%clk 00:17:50]} {[%emt 00:00:12]} 20. Qf8+ {[%clk 00:26:14]}
{[%emt 00:00:05]} Rxf8 {[%clk 00:17:17]} {[%emt 00:00:41]} 21. exf8=Q# {[%clk
00:25:58]} {[%emt 00:00:32]} 1-0

[Event "ONJK FGH 2"]
[Site "Enschede, Netherlands"]
[Date "2022.08.12"]
[Round "3.3"]
[White "Mousa, Besher"]
[Black "Terlouw, Frank"]
[Result "1-0"]
[TimeControl "25min + 10sec/move"]
[WhiteElo "782"]
[BlackElo "731"]

1. e4 {[%clk 00:25:19]} d6 {[%clk 00:25:19]} {[%emt 00:00:01]} 2. Nf3 {[%clk
00:25:27]} {[%emt 00:00:02]} Nf6 {[%clk 00:25:26]} {[%emt 00:00:03]} 3. Nc3
{[%clk 00:25:35]} {[%emt 00:00:02]} c6 {[%clk 00:25:34]} {[%emt 00:00:02]} 4.
a3 {[%clk 00:25:33]} {[%emt 00:00:12]} e5 {[%clk 00:25:42]} {[%emt 00:00:02]} 5.
Bc4 {[%clk 00:25:33]} {[%emt 00:00:10]} h6 {[%clk 00:25:31]} {[%emt 00:00:21]}
6. O-O {[%clk 00:25:38]} {[%emt 00:00:05]} Be7 {[%clk 00:25:39]} {[%emt
00:00:02]} 7. h3 {[%clk 00:25:45]} {[%emt 00:00:03]} O-O {[%clk 00:25:47]}
{[%emt 00:00:03]} 8. d3 {[%clk 00:25:49]} {[%emt 00:00:06]} b5 {[%clk
00:25:38]} {[%emt 00:00:19]} 9. Ba2 {[%clk 00:25:57]} {[%emt 00:00:02]} Nbd7
{[%clk 00:25:45]} {[%emt 00:00:03]} 10. Nh2 {[%clk 00:25:34]} {[%emt 00:00:29]}
Bb7 {[%clk 00:25:17]} {[%emt 00:00:41]} 11. Qf3 {[%clk 00:25:35]} {[%emt
00:00:04]} Nb6 {[%clk 00:24:54]} {[%emt 00:00:39]} 12. Qg3 {[%clk 00:25:23]}
{[%emt 00:00:20]} Kh7 {[%clk 00:24:35]} {[%emt 00:00:30]} 13. Re1 {[%clk
00:24:25]} {[%emt 00:01:04]} Nh5 {[%clk 00:24:02]} {[%emt 00:00:46]} 14. Qf3
{[%clk 00:24:08]} {[%emt 00:00:25]} Nf6 {[%clk 00:23:58]} {[%emt 00:00:17]} 15.
Qf5+ {[%clk 00:23:56]} {[%emt 00:00:20]} g6 {[%clk 00:23:50]} {[%emt 00:00:20]}
16. Qf3 {[%clk 00:23:52]} {[%emt 00:00:11]} Bc8 {[%clk 00:23:31]} {[%emt
00:00:31]} 17. Qe3 {[%clk 00:23:34]} {[%emt 00:00:23]} Ng8 {[%clk 00:23:00]}
{[%emt 00:00:47]} 18. Ng4 {[%clk 00:22:56]} {[%emt 00:00:47]} Bxg4 {[%clk
00:22:53]} {[%emt 00:00:17]} 19. hxg4 {[%clk 00:23:04]} {[%emt 00:00:03]} Bg5
{[%clk 00:23:01]} {[%emt 00:00:02]} 20. Qf3 {[%clk 00:22:52]} {[%emt 00:00:18]}
Bxc1 {[%clk 00:22:48]} {[%emt 00:00:26]} 21. Raxc1 {[%clk 00:22:43]} {[%emt
00:00:18]} Nf6 {[%clk 00:22:38]} {[%emt 00:00:22]} 22. Qh3 {[%clk 00:22:20]}
{[%emt 00:00:29]} Qd7 {[%clk 00:22:37]} {[%emt 00:00:15]} 23. f3 {[%clk
00:21:38]} {[%emt 00:00:49]} g5 {[%clk 00:22:25]} {[%emt 00:00:26]} 24. Kf2
{[%clk 00:21:25]} {[%emt 00:00:21]} a5 {[%clk 00:22:31]} {[%emt 00:00:05]} 25.
Rh1 {[%clk 00:21:32]} {[%emt 00:00:03]} Ng8 {[%clk 00:22:38]} {[%emt 00:00:04]}
26. Rh2 {[%clk 00:20:48]} {[%emt 00:00:53]} Qa7 {[%clk 00:22:08]} {[%emt
00:00:40]} 27. b4 {[%clk 00:20:25]} {[%emt 00:00:34]} axb4 {[%clk 00:22:11]}
{[%emt 00:00:07]} 28. axb4 {[%clk 00:20:33]} {[%emt 00:00:01]} Na4+ {[%clk
00:22:04]} {[%emt 00:00:15]} 29. Kg3 {[%clk 00:20:15]} {[%emt 00:00:26]} Nxc3
{[%clk 00:22:10]} {[%emt 00:00:09]} 30. Re1 {[%clk 00:19:43]} {[%emt 00:00:37]}
Nxa2 {[%clk 00:22:15]} {[%emt 00:00:08]} 31. Ra1 {[%clk 00:19:46]} {[%emt
00:00:07]} Qe3 {[%emt 00:01:10]} 32. Rah1 {[%clk 00:19:06]} Qf4+ {[%clk
00:21:59]} {[%emt 00:00:17]} 33. Kf2 {[%clk 00:19:11]} {[%emt 00:00:02]} Qf6
{[%clk 00:21:47]} {[%emt 00:00:25]} 34. Qh5 {[%clk 00:18:33]} {[%emt 00:00:36]}
Qg6 {[%clk 00:21:42]} {[%emt 00:00:27]} 35. Qh3 {[%clk 00:17:39]} {[%emt
00:00:57]} f6 {[%clk 00:21:40]} {[%emt 00:00:18]} 36. g3 {[%clk 00:16:17]}
{[%emt 00:01:33]} Nxb4 {[%clk 00:21:44]} {[%emt 00:00:05]} 37. c3 {[%clk
00:16:10]} {[%emt 00:00:08]} Ra2+ {[%clk 00:21:50]} {[%emt 00:00:13]} 38. Ke3
{[%clk 00:15:56]} {[%emt 00:00:19]} Rxh2 {[%clk 00:21:56]} {[%emt 00:00:09]} 39.
Qxh2 {[%clk 00:15:53]} {[%emt 00:00:12]} Na6 {[%clk 00:21:46]} {[%emt
00:00:21]} 40. f4 {[%clk 00:14:52]} {[%emt 00:01:11]} Qf7 {[%clk 00:21:37]}
{[%emt 00:00:19]} 41. f5 {[%clk 00:14:25]} {[%emt 00:00:33]} Qa7+ {[%clk
00:21:44]} {[%emt 00:00:08]} 42. Kf3 {[%clk 00:14:11]} {[%emt 00:00:21]} d5
{[%clk 00:21:50]} {[%emt 00:00:06]} 43. exd5 {[%clk 00:13:49]} {[%emt
00:00:32]} cxd5 {[%clk 00:21:59]} {[%emt 00:00:02]} 44. Qh5 {[%clk 00:13:19]}
{[%emt 00:00:37]} Qf7 {[%clk 00:22:02]} {[%emt 00:00:08]} 45. Qh3 {[%clk
00:12:40]} {[%emt 00:00:47]} Rc8 {[%clk 00:22:04]} {[%emt 00:00:10]} 46. Ra1
{[%clk 00:11:25]} {[%emt 00:01:24]} Qb7 {[%clk 00:22:03]} {[%emt 00:00:13]} 47.
Qh5 {[%clk 00:11:07]} {[%emt 00:00:25]} Qg7 {[%clk 00:21:52]} {[%emt 00:00:23]}
48. Rxa6 {[%clk 00:11:07]} {[%emt 00:00:11]} Rxc3 {[%clk 00:21:33]} {[%emt
00:00:28]} 49. Ke2 {[%clk 00:10:56]} {[%emt 00:00:16]} b4 {[%clk 00:21:01]}
{[%emt 00:00:49]} 50. Rb6 {[%clk 00:10:43]} {[%emt 00:00:18]} Ne7 {[%clk
00:20:42]} {[%emt 00:00:32]} 51. Rb7 {[%clk 00:10:47]} {[%emt 00:00:06]} b3
{[%clk 00:19:43]} {[%emt 00:01:11]} 52. Qe8 {[%clk 00:10:52]} {[%emt 00:00:02]}
Rc8 {[%clk 00:19:17]} {[%emt 00:00:39]} 53. Qxe7 {[%clk 00:10:14]} {[%emt
00:00:47]} Qxe7 {[%clk 00:19:20]} {[%emt 00:00:04]} 54. Rxe7+ {[%clk 00:10:24]}
Kg8 {[%clk 00:19:27]} {[%emt 00:00:06]} 55. Rb7 {[%clk 00:10:32]} {[%emt
00:00:03]} Rc3 {[%clk 00:19:21]} {[%emt 00:00:16]} 56. Kd2 {[%clk 00:10:39]}
{[%emt 00:00:02]} d4 {[%clk 00:19:29]} {[%emt 00:00:03]} 57. Rb8+ {[%clk
00:10:02]} {[%emt 00:00:47]} Kf7 {[%clk 00:19:35]} {[%emt 00:00:04]} 58. Rb7+
{[%clk 00:10:10]} {[%emt 00:00:01]} Ke8 {[%clk 00:19:35]} {[%emt 00:00:10]} 59.
Rb8+ {[%clk 00:10:17]} {[%emt 00:00:03]} Kd7 {[%clk 00:19:44]} 60. Rb4 {[%clk
00:10:10]} {[%emt 00:00:17]} Kc6 {[%clk 00:19:45]} {[%emt 00:00:09]} 61. Ke2
{[%clk 00:08:48]} {[%emt 00:01:31]} Kc5 {[%clk 00:19:50]} {[%emt 00:00:06]} 62.
Rb8 {[%clk 00:08:56]} {[%emt 00:00:01]} Rc2+ {[%clk 00:19:45]} {[%emt
00:00:16]} 63. Kd1 {[%clk 00:09:01]} {[%emt 00:00:04]} Rc3 {[%clk 00:19:44]}
{[%emt 00:00:13]} 64. Kd2 {[%clk 00:08:37]} {[%emt 00:00:33]} Kd5 {[%clk
00:19:40]} {[%emt 00:00:14]} 65. Rd8+ {[%clk 00:08:24]} {[%emt 00:00:23]} Kc5
{[%clk 00:19:38]} {[%emt 00:00:12]} 66. Rb8 {[%clk 00:08:24]} {[%emt 00:00:10]}
Kd6 {[%clk 00:19:45]} {[%emt 00:00:04]} 67. Rb6+ {[%clk 00:07:27]} {[%emt
00:01:07]} Kc7 {[%clk 00:19:52]} {[%emt 00:00:02]} 68. Rxf6 {[%clk 00:07:25]}
{[%emt 00:00:13]} b2 {[%clk 00:19:56]} {[%emt 00:00:05]} 69. Rf7+ {[%clk
00:07:34]} {[%emt 00:00:01]} Kd6 {[%clk 00:19:57]} {[%emt 00:00:09]} 70. Rb7
{[%clk 00:07:39]} {[%emt 00:00:06]} Rc7 {[%clk 00:19:39]} {[%emt 00:00:29]} 71.
Rxb2 {[%clk 00:07:42]} {[%emt 00:00:06]} Rc6 {[%clk 00:19:35]} {[%emt
00:00:13]} 72. Rb1 {[%clk 00:07:38]} {[%emt 00:00:15]} Ra6 {[%clk 00:19:26]}
{[%emt 00:00:19]} 73. Rf1 {[%clk 00:07:30]} {[%emt 00:00:17]} Ra2+ {[%emt
00:00:06]} 74. Ke1 {[%clk 00:07:37]} Ra1+ {[%clk 00:19:39]} {[%emt 00:00:05]}
75. Ke2 {[%clk 00:07:46]} {[%emt 00:00:01]} Rxf1 {[%clk 00:19:27]} {[%emt
00:00:21]} 76. Kxf1 {[%clk 00:07:54]} {[%emt 00:00:02]} Ke7 {[%clk 00:19:28]}
{[%emt 00:00:09]} 77. Kf2 {[%clk 00:08:02]} {[%emt 00:00:02]} Kf6 {[%clk
00:19:30]} {[%emt 00:00:08]} 78. Kf3 {[%clk 00:08:11]} Ke7 {[%clk 00:19:03]}
{[%emt 00:00:37]} 79. Ke4 {[%clk 00:08:10]} {[%emt 00:00:12]} Kf6 {[%clk
00:19:04]} {[%emt 00:00:09]} 80. Kd5 {[%clk 00:08:13]} {[%emt 00:00:07]} h5
{[%clk 00:18:22]} {[%emt 00:00:51]} 81. gxh5 {[%clk 00:08:03]} {[%emt
00:00:19]} Kxf5 {[%clk 00:18:28]} {[%emt 00:00:05]} 82. g4 {[%clk 00:08:11]}
{[%emt 00:00:03]} Kf6 {[%clk 00:18:33]} {[%emt 00:00:05]} 83. Ke4 {[%clk
00:08:14]} {[%emt 00:00:07]} Ke6 {[%clk 00:18:34]} {[%emt 00:00:08]} 84. Kf3
{[%clk 00:08:07]} {[%emt 00:00:16]} Kf6 {[%clk 00:18:37]} {[%emt 00:00:08]} 85.
Ke4 {[%clk 00:08:13]} {[%emt 00:00:04]} Ke6 {[%clk 00:18:46]} 86. h6 {[%clk
00:08:23]} Kf7 {[%clk 00:18:55]} 87. Kf5 {[%clk 00:08:22]} {[%emt 00:00:10]} e4
{[%clk 00:18:42]} {[%emt 00:00:23]} 88. Kxe4 {[%clk 00:08:28]} Kg6 {[%clk
00:18:50]} {[%emt 00:00:06]} 89. Kxd4 {[%clk 00:08:36]} {[%emt 00:00:02]} Kxh6
{[%clk 00:18:58]} 90. Ke5 {[%clk 00:08:45]} {[%emt 00:00:02]} Kg6 {[%clk
00:19:07]} {[%emt 00:00:01]} 91. d4 {[%clk 00:08:55]} Kf7 {[%clk 00:19:09]}
{[%emt 00:00:07]} 92. Kf5 {[%clk 00:08:58]} {[%emt 00:00:08]} Ke7 {[%clk
00:19:15]} {[%emt 00:00:04]} 93. Kxg5 {[%clk 00:09:06]} {[%emt 00:00:02]} Kd6
{[%clk 00:19:23]} {[%emt 00:00:02]} 94. Kf6 {[%clk 00:09:15]} {[%emt 00:00:01]}
Kd5 {[%clk 00:19:32]} 95. g5 {[%clk 00:09:22]} {[%emt 00:00:04]} Kxd4 {[%clk
00:19:41]} 96. Kf7 {[%clk 00:09:29]} {[%emt 00:00:03]} Ke5 {[%clk 00:19:50]} 97.
g6 {[%clk 00:09:39]} Kf5 {[%clk 00:19:58]} {[%emt 00:00:02]} 98. g7 {[%clk
00:09:48]} {[%emt 00:00:01]} Kg5 {[%clk 00:20:05]} {[%emt 00:00:02]} 99. g8=Q+
{[%clk 00:09:57]} {[%emt 00:00:02]} Kf5 {[%clk 00:20:11]} {[%emt 00:00:04]} 100.
Qg6+ {[%emt 00:00:02]} Ke5 {[%emt 00:00:02]} 101. Qf6+ {[%clk 00:10:00]} {[%emt
00:00:02]} Kd5 {[%clk 00:20:19]} {[%emt 00:00:02]} 102. Qe6+ {[%clk 00:10:09]}
{[%emt 00:00:01]} Kd4 {[%clk 00:20:28]} 103. Kf6 {[%clk 00:10:18]} {[%emt
00:00:01]} Kc5 {[%clk 00:20:36]} {[%emt 00:00:03]} 104. Qd7 {[%clk 00:10:26]}
{[%emt 00:00:02]} Kc4 {[%clk 00:20:44]} {[%emt 00:00:01]} 105. Ke5 {[%clk
00:10:35]} {[%emt 00:00:01]} Kc3 {[%clk 00:20:53]} 106. Ke4 {[%clk 00:10:44]}
{[%emt 00:00:01]} Kc4 {[%clk 00:21:02]} 107. Qd4+ {[%clk 00:10:53]} {[%emt
00:00:01]} Kb5 {[%clk 00:21:12]} {[%emt 00:00:01]} 108. Kd5 {[%clk 00:11:00]}
{[%emt 00:00:03]} Ka6 {[%clk 00:21:19]} {[%emt 00:00:02]} 109. Qb2 {[%clk
00:11:08]} {[%emt 00:00:03]} Ka7 {[%clk 00:21:27]} {[%emt 00:00:02]} 110. Kc6
{[%clk 00:11:16]} Ka8 {[%clk 00:21:35]} {[%emt 00:00:03]} 111. Qb7# {[%clk
00:11:25]} {[%emt 00:00:02]} 1-0